bitfinex-derivatives/quotes_SOLF0:USTF0_20240904
["timestamp","ask_amount","ask_price","bid_price","bid_amount"]
[1725459476651,44.44,129.85,129.72,128.5981869]
[1725459476852,44.44,129.83,129.81,0.05151416]
[1725459477057,0.05259824,129.83,129.77,3.86379376]
[1725459477256,44.44,129.83,129.81,0.05151416]
[1725459477448,44.48850409,129.83,129.81,0.05151416]
[1725459478152,0.04850409,129.83,129.81,0.05151416]
[1725459480461,1.4119,129.9,129.81,0.05151416]
[1725459480658,45.8519,129.9,129.79,44.44]
[1725459481158,44.44,129.88,129.77,48.27619693]
[1725459481356,1.4119,129.9,129.73,45.8322]
[1725459481357,44.44,129.83,129.73,45.8322]
[1725459481661,44.44,129.83,129.77,0.05791175]
[1725459481662,0.05193549,129.79,129.77,0.05791175]
[1725459481857,0.05193549,129.79,129.77,3.91081175]
[1725459482164,0.05193549,129.79,129.77,0.05791175]
[1725459482462,44.49193549,129.79,129.77,0.05791175]
[1725459482658,44.49193549,129.79,129.66,44.44]
[1725459482855,44.44,129.79,129.66,44.44]
[1725459483166,44.44,129.74,129.62,45.8322]
[1725459483365,44.44,129.77,129.64,44.44]
[1725459483552,1.0,129.78,129.71,44.44]
[1725459483759,0.05603746,129.76,129.73,0.0421065]
[1725459484057,2.6825,129.82,129.73,44.4821065]
[1725459484263,44.44,129.86,129.73,44.44]
[1725459484465,45.7703,129.88,129.78,44.44]
[1725459484862,45.7703,129.88,129.78,48.26339343]
[1725459485062,3.79030396,129.99,129.8,44.44]
[1725459485268,0.05501837,129.84,129.82,0.05029784]
[1725459485465,1.3303,129.97,129.82,44.44]
[1725459485660,0.05459013,129.84,129.82,44.44]
[1725459485868,0.05304507,129.89,129.86,0.04878896]
[1725459486076,1.3303,129.97,129.82,44.44]
[1725459486364,0.04961042,129.89,129.86,0.05072473]
[1725459486572,0.04961042,129.89,129.87,3.8501]
[1725459486965,44.44,129.95,129.86,0.05072473]
[1725459487165,5.1777,129.97,129.92,3.8486]
[1725459487368,1.3303,129.97,129.89,3.91971027]
[1725459487565,3.8476,129.96,129.88,3.79377476]
[1725459487770,45.7703,129.97,129.87,44.44]
[1725459487977,45.7703,129.97,129.87,48.34039769]
[1725459488178,0.05812964,129.93,129.91,0.05583918]
[1725459489075,0.05812964,129.93,129.92,3.8487]
[1725459489386,0.05812964,129.93,129.91,0.05583918]
[1725459489969,0.05812964,129.93,129.82,44.44]
[1725459490169,44.44,129.95,129.88,3.8496]
[1725459490170,3.8483,129.94,129.88,3.8496]
[1725459490370,44.44,129.95,129.8,44.44]
[1725459490371,44.44,129.95,129.87,3.90578658]
[1725459490576,44.44,129.95,129.84,44.44]
[1725459490775,3.8481,129.94,129.88,3.8496]
[1725459490984,0.04889805,129.92,129.9,0.05406541]
[1725459491183,0.05808538,129.92,129.9,0.05406541]
[1725459491386,1.4293,130.05,129.91,44.44]
[1725459491387,44.44,130.02,129.91,44.44]
[1725459491578,44.44,130.02,129.91,48.31520463]
[1725459491778,3.8463,130.0,129.95,3.8476]
[1725459491982,1.3146,130.03,129.93,44.44]
[1725459492190,44.44,130.02,129.91,44.44]
[1725459492490,0.05620352,129.98,129.95,0.05416376]
[1725459492781,0.05620352,129.98,129.95,0.05880811]
[1725459492782,0.05695866,129.98,129.95,0.05880811]
[1725459493489,0.05695866,129.98,129.96,3.8473]
[1725459493984,48.2847,130.06,129.95,44.49880811]
[1725459494180,44.44,130.08,129.97,44.44]
[1725459494381,44.44,130.08,129.95,44.44]
[1725459494582,3.845,130.05,129.95,44.44]
[1725459494782,48.24684467,130.06,129.96,3.81184709]
[1725459495180,0.05105323,130.02,130.0,0.04934498]
[1725459495381,0.05318657,130.02,130.0,0.05078922]
[1725459498692,44.44,130.01,129.9,44.44]
[1725459498889,48.2862,130.01,129.9,44.44]
[1725459499183,44.44,130.01,129.9,44.44]
[1725459499889,44.44,130.01,129.87,1.3324]
[1725459499890,0.05723365,129.97,129.96,3.8475]
[1725459500188,0.05031799,129.98,129.95,0.05708223]
[1725459500392,0.05031799,129.98,129.96,3.8475]
[1725459500875,0.05031799,129.98,129.95,0.05708223]
[1725459501075,44.49031799,129.98,129.85,45.846]
[1725459501289,44.44,129.96,129.85,1.406]
[1725459501484,3.8482,129.94,129.85,1.406]
[1725459501981,3.8476,129.96,129.91,3.8488]
[1725459502180,44.49528903,129.95,129.92,0.05300685]
[1725459502382,1.4431,129.94,129.92,0.0528808]
[1725459502777,1.4431,129.94,129.83,44.44]
[1725459503188,44.44,129.93,129.83,48.3278243]
[1725459503484,44.44,129.93,129.83,3.8878243]
[1725459503685,5.2914,129.94,129.81,72.36720166]
[1725459503988,0.05849335,129.89,129.86,0.04210519]
[1725459504288,0.05849335,129.89,129.88,3.8497]
[1725459504583,0.05849335,129.89,129.88,52.19069314]
[1725459504786,1.3386,130.0,129.88,44.44]
[1725459504981,1.3386,130.0,129.92,44.44]
[1725459505382,1.3386,130.0,129.97,3.8469]
[1725459505779,1.38850371,130.0,129.97,0.054917]
[1725459506483,45.7786,130.0,129.88,44.44]
[1725459506691,44.44,129.98,129.89,3.88982985]
[1725459506988,44.44,129.95,129.83,44.44]
[1725459507393,1.4329,129.99,129.81,76.27682517]
[1725459507394,44.44,129.93,129.81,76.27682517]
[1725459507586,0.05163031,129.89,129.87,0.04568154]
[1725459508089,44.44,129.89,129.77,44.44]
[1725459508680,1.3573,129.91,129.75,45.7592]
[1725459508681,44.44,129.87,129.75,45.7592]
[1725459508882,3.8509,129.85,129.8,3.8522]
[1725459509088,44.44,129.87,129.75,44.44]
[1725459509286,1.41325528,129.84,129.75,44.44]
[1725459509492,0.05027236,129.81,129.79,3.8523]
[1725459509688,0.05027236,129.81,129.75,44.44]
[1725459509988,0.05027236,129.81,129.8,3.8522]
[1725459510679,0.05027236,129.81,129.79,3.8525]
[1725459510992,0.05027236,129.81,129.75,44.44]
[1725459511195,0.05027236,129.81,129.8,3.8522]
[1725459512891,0.05027236,129.81,129.75,44.44]
[1725459513404,0.05027236,129.81,129.76,3.90455804]
[1725459513699,0.05577719,129.8,129.73,3.83868596]
[1725459513992,0.05577719,129.8,129.69,44.44]
[1725459514198,0.05361788,129.76,129.69,44.44]
[1725459514384,0.05361788,129.76,129.75,3.8537]
[1725459514791,0.05361788,129.76,129.69,44.44]
[1725459514993,0.05361788,129.76,129.7,3.80825383]
[1725459515297,0.05361788,129.76,129.71,3.87643721]
[1725459515598,0.05361788,129.76,129.65,2.7607]
[1725459515599,0.05361788,129.76,129.67,44.44]
[1725459515788,0.05511908,129.73,129.67,44.44]
[1725459516195,0.05511908,129.73,129.7,3.8549]
[1725459516402,0.05511908,129.73,129.67,44.44]
[1725459516700,0.05511908,129.73,129.69,44.44]
[1725459516891,0.05785484,129.72,129.69,44.44]
[1725459517099,0.05785484,129.72,129.71,3.8549]
[1725459517291,0.05785484,129.72,129.67,44.44]
[1725459517491,0.05785484,129.72,129.65,2.7607]
[1725459517492,0.05785484,129.72,129.65,47.2007]
[1725459517702,0.05785484,129.72,129.68,3.8557]
[1725459517998,0.05785484,129.72,129.65,47.2007]
[1725459518197,0.05785484,129.72,129.68,3.8556]
[1725459518389,0.05785484,129.72,129.65,45.7698]
[1725459518594,0.05785484,129.72,129.65,44.44]
[1725459518897,0.05785484,129.72,129.62,44.44]
[1725459519101,0.05900473,129.68,129.63,1.41671428]
[1725459519295,0.05900473,129.68,129.67,48.2958]
[1725459520096,1.3454,129.77,129.67,48.2958]
[1725459520097,1.3454,129.77,129.72,3.8545]
[1725459520295,44.44,129.8,129.72,3.92769769]
[1725459520496,44.44,129.8,129.69,44.44]
[1725459520497,45.8471,129.8,129.69,44.44]
[1725459520899,45.8471,129.8,129.62,3.91313312]
[1725459521210,0.04962536,129.72,129.71,3.8549]
[1725459521393,1.4071,129.8,129.72,44.44]
[1725459522002,1.4071,129.8,129.71,3.80742664]
[1725459522198,1.4071,129.8,129.7,44.44]
[1725459522397,0.05455193,129.76,129.74,0.05127102]
[1725459523198,0.05455193,129.76,129.65,44.44]
[1725459523397,3.8537,129.75,129.7,3.855]
[1725459523899,3.8535,129.76,129.7,3.855]
[1725459524103,44.44,129.79,129.7,3.855]
[1725459524307,0.05171362,129.76,129.73,0.05650857]
[1725459524505,3.90541362,129.76,129.73,0.05650857]
[1725459524900,3.8539,129.75,129.73,0.05650857]
[1725459525207,0.05171362,129.76,129.73,0.05650857]
[1725459526003,3.90521362,129.76,129.73,0.05650857]
[1725459526409,0.05171362,129.76,129.73,0.05650857]
[1725459526615,0.05171362,129.76,129.74,3.854]
[1725459526908,0.05171362,129.76,129.73,0.05650857]
[1725459527201,0.05171362,129.76,129.75,3.8537]
[1725459527908,0.05171362,129.76,129.74,3.8539]
[1725459528403,0.05171362,129.76,129.73,0.05650857]
[1725459528601,0.05171362,129.76,129.75,3.8537]
[1725459528806,0.05171362,129.76,129.73,0.05650857]
[1725459529006,0.05171362,129.76,129.75,3.8537]
[1725459530307,1.343,129.81,129.74,3.88828926]
[1725459530612,1.343,129.81,129.72,44.44]
[1725459531013,44.44,129.85,129.74,44.44]
[1725459531214,45.7614,129.85,129.74,44.44]
[1725459531504,0.05626382,129.81,129.78,0.05436995]
[1725459532415,0.05626382,129.81,129.8,3.8522]
[1725459532704,0.05626382,129.81,129.78,0.05436995]
[1725459532906,0.05626382,129.81,129.79,3.8525]
[1725459533108,0.05626382,129.81,129.78,0.05436995]
[1725459533300,0.05626382,129.81,129.78,3.87987072]
[1725459533607,0.05626382,129.81,129.8,3.8522]
[1725459533809,0.05626382,129.81,129.78,0.05436995]
[1725459534512,0.05626382,129.81,129.79,3.8525]
[1725459534806,0.05626382,129.81,129.78,0.05436995]
[1725459535007,3.90836382,129.81,129.78,0.05436995]
[1725459535209,48.32060896,129.81,129.78,0.05436995]
[1725459535415,44.49626382,129.81,129.78,0.05436995]
[1725459536309,0.05626382,129.81,129.78,0.05436995]
[1725459536818,48.26928077,129.81,129.78,0.05436995]
[1725459537007,3.8522,129.8,129.78,0.05436995]
[1725459537310,3.82928077,129.81,129.78,0.05436995]
[1725459537711,3.90836382,129.81,129.78,0.05436995]
[1725459537909,0.05626382,129.81,129.78,0.05436995]
[1725459538317,0.05626382,129.81,129.78,3.90696995]
[1725459538515,0.05626382,129.81,129.78,0.05436995]
[1725459538717,0.05626382,129.81,129.78,3.90706995]
[1725459539215,0.05626382,129.81,129.78,0.05436995]
[1725459539411,44.49626382,129.81,129.78,0.05436995]
[1725459539806,48.34846382,129.81,129.78,0.05436995]
[1725459540207,44.49626382,129.81,129.78,0.05436995]
[1725459540907,3.8537,129.75,129.64,7.7139]
[1725459541107,44.44,129.76,129.64,52.1539]
[1725459541314,47.1241,129.78,129.66,45.85641945]
[1725459541616,2.6841,129.78,129.68,44.44]
[1725459541915,0.05204267,129.74,129.73,3.8543]
[1725459542117,0.05749242,129.75,129.73,3.79132311]
[1725459542309,44.44,129.82,129.72,0.05487978]
[1725459542619,2.6841,129.83,129.72,0.05487978]
[1725459542620,44.44,129.8,129.72,3.88238295]
[1725459542913,44.44,129.78,129.66,44.44]
[1725459543217,0.05620985,129.73,129.66,44.44]
[1725459543420,0.05620985,129.73,129.68,0.05168619]
[1725459544015,3.91080985,129.73,129.68,3.90728619]
[1725459544524,0.05620985,129.73,129.68,0.05168619]
[1725459544716,3.855,129.71,129.68,0.05168619]
[1725459545119,0.05620985,129.73,129.68,0.05168619]
[1725459545417,3.8547,129.72,129.68,0.05168619]
[1725459546020,44.44,129.71,129.68,0.05168619]
[1725459546417,3.8551,129.71,129.68,0.05168619]
[1725459546613,44.44,129.7,129.68,0.05168619]
[1725459546818,44.44,129.7,129.58,44.44]
[1725459547119,44.44,129.7,129.59,1.41725102]
[1725459547120,48.20194309,129.7,129.59,1.41725102]
[1725459547314,44.44,129.7,129.59,1.41725102]
[1725459547617,3.8553,129.7,129.65,3.8565]
[1725459547813,3.8553,129.7,129.6,45.7953]
[1725459547814,0.04949032,129.69,129.66,0.05124606]
[1725459548122,3.91037666,129.69,129.66,0.05124606]
[1725459548420,3.91155706,129.73,129.58,3.92273955]
[1725459548421,44.44,129.68,129.58,3.92273955]
[1725459548624,1.3608,129.67,129.61,3.8576]
[1725459548821,1.3608,129.67,129.6,3.83466826]
[1725459549121,1.3608,129.67,129.55,45.7953]
[1725459549312,44.44,129.66,129.55,45.7953]
[1725459549512,0.05069456,129.62,129.58,44.44]
[1725459549720,0.05069456,129.62,129.58,48.32404829]
[1725459549917,0.05069456,129.62,129.58,3.88404829]
[1725459550120,0.05069456,129.62,129.56,44.44]
[1725459550318,0.05069456,129.62,129.55,1.3553]
[1725459550522,0.05069456,129.62,129.48,7.7235]
[1725459550715,0.05399209,129.57,129.51,45.8678]
[1725459550918,1.3608,129.67,129.55,44.44]
[1725459551120,1.3608,129.67,129.55,48.3321497]
[1725459551926,1.3608,129.67,129.58,44.44]
[1725459552127,0.05390855,129.62,129.6,0.05183117]
[1725459552422,45.8476,129.72,129.61,44.44]
[1725459553130,1.3693,129.73,129.63,44.44]
[1725459553326,0.05724791,129.69,129.67,0.04894479]
[1725459553528,0.05724791,129.69,129.68,3.8558]
[1725459553729,3.8535,129.76,129.67,0.04894479]
[1725459554029,44.44,129.77,129.67,3.82522816]
[1725459554232,44.44,129.72,129.61,44.44]
[1725459554738,0.05774356,129.68,129.65,0.04880293]
[1725459558125,0.05774356,129.68,129.67,3.8561]
[1725459558730,0.05774356,129.68,129.65,0.04880293]
[1725459558924,44.44,129.66,129.65,0.04880293]
[1725459559121,48.2964,129.66,129.65,0.04880293]
[1725459559326,44.44,129.66,129.59,3.8583]
[1725459559931,3.8572,129.64,129.59,3.8583]
[1725459560140,44.44,129.66,129.58,3.8587]
[1725459560432,3.90968898,129.63,129.61,0.05782641]
[1725459560634,0.05218898,129.63,129.61,0.05782641]
[1725459561828,44.44,129.62,129.52,1.3448]
[1725459562132,44.44,129.6,129.54,3.84567901]
[1725459562632,44.44,129.6,129.48,1.3752]
[1725459563026,0.04863918,129.57,129.54,0.05045206]
[1725459563228,0.04863918,129.57,129.47,117.53802017]
[1725459563430,44.44,129.48,129.37,44.44]
[1725459563728,44.44,129.48,129.33,1.3619]
[1725459563729,44.44,129.5,129.39,45.8152]
[1725459563932,44.44,129.52,129.41,44.44]
[1725459564131,48.3006,129.52,129.42,1.3619]
[1725459564434,0.05795827,129.48,129.46,0.02555877]
[1725459564638,0.05691042,129.48,129.46,0.02555877]
[1725459568235,44.49691042,129.48,129.46,0.02555877]
[1725459569235,48.35871042,129.48,129.46,0.02555877]
[1725459569537,44.49691042,129.48,129.46,0.02555877]
[1725459570042,0.05691042,129.48,129.46,0.02555877]
[1725459571743,44.44,129.47,129.46,0.02555877]
[1725459571931,44.44,129.44,129.36,1.43]
[1725459572130,44.44,129.42,129.36,5.295]
[1725459572340,44.44,129.42,129.36,5.36665507]
[1725459572730,44.44,129.4,129.36,1.43]
[1725459572935,0.05079873,129.39,129.35,7.75088389]
[1725459573133,0.05079873,129.39,129.35,3.88528389]
[1725459573443,44.44,129.38,129.31,1.43]
[1725459573740,44.44,129.42,129.29,2.6955]
[1725459573741,44.49411393,129.36,129.29,5.2427]
[1725459574339,44.49411393,129.36,129.3,3.8671]
[1725459574740,44.49411393,129.36,129.28,3.79629629]
[1725459574741,44.44,129.31,129.28,3.79629629]
[1725459574932,44.49390261,129.31,129.25,3.8684]
[1725459575136,44.49390261,129.31,129.19,45.7645]
[1725459575345,44.49390261,129.31,129.21,3.92399691]
[1725459575346,0.05832513,129.27,129.21,3.92399691]
[1725459575543,0.05832513,129.27,129.26,3.8683]
[1725459575843,44.44,129.36,129.26,44.44]
[1725459576038,44.44,129.34,129.24,44.44]
[1725459576434,44.44,129.36,129.24,48.3905027]
[1725459576640,44.44,129.36,129.26,44.44]
[1725459576846,44.44,129.4,129.28,44.44]
[1725459577144,0.05162633,129.35,129.34,3.8656]
[1725459577346,0.05720625,129.36,129.33,0.05585937]
[1725459577540,0.05720625,129.36,129.34,3.8659]
[1725459577844,44.44,129.43,129.3,44.44]
[1725459578143,44.44,129.43,129.36,3.8651]
[1725459578344,44.44,129.41,129.3,1.3079]
[1725459578540,44.44,129.39,129.33,3.8659]
[1725459578743,0.05208072,129.37,129.35,0.05850909]
[1725459579450,44.44,129.36,129.35,0.05850909]
[1725459580748,0.05208072,129.37,129.35,3.92514998]
[1725459580944,0.05208072,129.37,129.36,3.8653]
[1725459581744,0.05208072,129.37,129.35,3.92514998]
[1725459581745,0.05208072,129.37,129.35,0.05850909]
[1725459581945,0.05208072,129.37,129.35,3.95938282]
[1725459582149,0.05208072,129.37,129.36,3.8653]
[1725459583555,0.05208072,129.37,129.35,7.8681829]
[1725459584051,0.05208072,129.37,129.36,3.8653]
[1725459584451,44.44,129.41,129.35,4.0026829]
[1725459584653,44.44,129.41,129.37,3.8648]
[1725459585250,3.863,129.44,129.35,3.94417381]
[1725459585550,0.05044919,129.41,129.38,0.05896106]
[1725459585749,0.05044919,129.41,129.39,3.8642]
[1725459586051,44.44,129.4,129.38,0.05896106]
[1725459586948,0.05044919,129.41,129.38,0.05896106]
[1725459587554,44.44,129.39,129.38,0.05896106]
[1725459588950,48.35454919,129.41,129.38,0.05896106]
[1725459589155,44.49044919,129.41,129.38,0.05896106]
[1725459589756,44.49044919,129.41,129.39,3.8642]
[1725459589757,0.05044919,129.41,129.39,3.8642]
[1725459590366,0.05044919,129.41,129.38,0.05896106]
[1725459590959,44.44,129.51,129.39,44.44]
[1725459591560,44.44,129.49,129.37,47.2856]
[1725459591757,0.05942493,129.44,129.42,3.91439518]
[1725459592061,0.05576485,129.44,129.42,0.05109518]
[1725459592456,0.05576485,129.44,129.43,3.89348662]
[1725459592653,0.05576485,129.44,129.43,3.8632]
[1725459593852,0.05576485,129.44,129.42,3.85258837]
[1725459593853,0.05576485,129.44,129.42,0.05109518]
[1725459594254,0.05576485,129.44,129.42,3.86705747]
[1725459594459,0.05576485,129.44,129.42,0.05109518]
[1725459594659,0.05576485,129.44,129.42,3.86087652]
[1725459594860,0.05576485,129.44,129.43,3.8632]
[1725459596353,0.05576485,129.44,129.42,3.86087652]
[1725459597162,0.05576485,129.44,129.43,3.8632]
[1725459597853,0.05576485,129.44,129.42,3.86087652]
[1725459598159,0.05576485,129.44,129.42,0.05109518]
[1725459598357,3.8632,129.43,129.42,0.05109518]
[1725459598859,44.44,129.44,129.37,3.8649]
[1725459599162,44.44,129.44,129.34,1.354]
[1725459599859,0.05764331,129.4,129.38,0.05324479]
[1725459601466,45.8469,129.53,129.39,44.44]
[1725459601761,45.8469,129.53,129.43,44.44]
[1725459601762,3.8613,129.5,129.43,44.44]
[1725459601957,44.44,129.51,129.44,3.81638964]
[1725459602159,3.8619,129.48,129.41,44.44]
[1725459602363,0.05441576,129.46,129.43,0.05095886]
[1725459602562,0.05441576,129.46,129.39,44.44]
[1725459602773,0.05862424,129.44,129.43,0.05072258]
[1725459602952,1.3955,129.52,129.43,44.44]
[1725459604164,0.05925841,129.49,129.46,0.05659852]
[1725459604462,0.05923357,129.49,129.46,0.05659852]
[1725459604771,44.44,129.5,129.39,44.44]
[1725459605057,3.8622,129.47,129.39,48.36739154]
[1725459605467,44.44,129.48,129.39,3.92739154]
[1725459605765,3.91652093,129.45,129.42,0.0495891]
[1725459605960,0.05382093,129.45,129.42,0.0495891]
[1725459606560,44.49382093,129.45,129.33,44.44]
[1725459606763,44.44,129.43,129.32,1.3375]
[1725459607762,0.04931198,129.4,129.37,0.04879843]
[1725459608454,44.44,129.41,129.29,1.4377]
[1725459609268,3.8654,129.36,129.31,3.8666]
[1725459609462,0.05103385,129.35,129.32,0.0591347]
[1725459609662,0.05678213,129.35,129.32,0.05792417]
[1725459610060,3.89224138,129.45,129.32,0.05792417]
[1725459610061,48.33224138,129.45,129.33,44.44]
[1725459610260,3.8631,129.44,129.35,44.44]
[1725459610465,44.44,129.48,129.35,44.44]
[1725459610862,44.44,129.5,129.4,44.44]
[1725459611060,44.44,129.52,129.4,48.32725641]
[1725459611366,0.05478189,129.46,129.45,3.8626]
[1725459611571,0.05272028,129.47,129.44,44.49385824]
[1725459611759,44.44,129.56,129.44,44.49206333]
[1725459611961,44.44,129.56,129.46,44.44]
[1725459612169,45.8146,129.59,129.46,44.44]
[1725459612368,0.53756071,129.58,129.46,44.44]
[1725459612566,44.44,129.56,129.44,44.44]
[1725459612767,44.44,129.56,129.42,44.44]
[1725459612768,0.05340239,129.51,129.49,0.05813475]
[1725459612965,3.86,129.54,129.49,0.05813475]
[1725459613170,0.05731651,129.53,129.49,0.05813475]
[1725459613370,0.05731651,129.53,129.5,3.9183714]
[1725459613669,0.05731651,129.53,129.49,0.05813475]
[1725459614262,0.05731651,129.53,129.49,3.91953475]
[1725459614681,0.05731651,129.53,129.49,0.05813475]
[1725459615063,1.4394,129.58,129.51,44.44]
[1725459615258,1.4394,129.58,129.53,3.86]
[1725459615458,1.4394,129.58,129.51,44.44]
[1725459615667,3.8599,129.55,129.5,3.8611]
[1725459616160,0.05274471,129.54,129.51,0.05369681]
[1725459616566,44.44,129.52,129.45,3.93359795]
[1725459616763,44.44,129.52,129.46,3.8623]
[1725459616964,44.44,129.54,129.46,3.80848891]
[1725459617170,44.44,129.54,129.43,45.8001]
[1725459617473,44.44,129.56,129.45,44.44]
[1725459617665,0.05847201,129.5,129.47,0.05484585]
[1725459617869,0.04961323,129.5,129.47,0.05012714]
[1725459618369,0.04961323,129.5,129.47,3.91202714]
[1725459618568,0.04961323,129.5,129.47,0.05012714]
[1725459618971,1.4394,129.58,129.47,44.44]
[1725459619370,1.4394,129.58,129.54,3.8598]
[1725459619565,1.4394,129.58,129.52,44.44]
[1725459619971,5.2984,129.58,129.52,44.44]
[1725459620170,0.04920248,129.56,129.54,0.05557352]
[1725459620477,0.05517837,129.56,129.54,0.05622551]
[1725459621172,0.05517837,129.56,129.54,3.96219049]
[1725459621382,44.44,129.63,129.54,0.05622551]
[1725459621567,272.8668,129.65,129.57,3.859]
[1725459621772,45.8668,129.65,129.54,44.44]
[1725459621975,45.8668,129.65,129.54,48.21701447]
[1725459622479,0.0550676,129.61,129.58,0.05544254]
[1725459622675,3.8585,129.59,129.58,0.05544254]
[1725459622974,0.0550676,129.61,129.58,0.05544254]
[1725459623380,0.0550676,129.61,129.59,3.8583]
[1725459623772,0.0550676,129.61,129.58,0.05544254]
[1725459623773,0.0550676,129.61,129.58,44.49544254]
[1725459623972,0.0550676,129.61,129.6,3.8582]
[1725459624376,0.0550676,129.61,129.58,0.05544254]
[1725459624975,0.0550676,129.61,129.58,3.88351325]
[1725459625379,0.0550676,129.61,129.58,3.84259609]
[1725459625768,0.0550676,129.61,129.58,0.05544254]
[1725459625970,44.44,129.6,129.58,0.05544254]
[1725459626170,0.0550676,129.61,129.58,0.05544254]
[1725459627283,3.9130676,129.61,129.58,0.05544254]
[1725459627685,0.0550676,129.61,129.58,0.05544254]
[1725459627875,0.0550676,129.61,129.59,3.8585]
[1725459628079,44.44,129.69,129.58,44.49544254]
[1725459628275,227.0,129.75,129.54,48.25764842]
[1725459628276,1.3863,129.73,129.63,44.44]
[1725459628481,3.8554,129.7,129.63,48.36380776]
[1725459628778,1.3863,129.73,129.63,48.36380776]
[1725459628985,3.8557,129.69,129.64,3.8568]
[1725459629184,3.8557,129.69,129.6,44.44]
[1725459629481,0.05222205,129.66,129.63,0.04969218]
[1725459629687,1.3863,129.73,129.65,44.44]
[1725459629886,0.05338695,129.66,129.65,44.44]
[1725459630072,3.8546,129.72,129.65,44.44]
[1725459630275,1.3863,129.73,129.65,44.44]
[1725459630473,1.3863,129.73,129.65,48.38632177]
[1725459630685,1.3863,129.73,129.69,3.8554]
[1725459630878,1.3863,129.73,129.65,48.38632177]
[1725459631084,0.05044588,129.7,129.68,0.05216953]
[1725459631790,0.05044588,129.7,129.68,3.90786953]
[1725459632287,0.05044588,129.7,129.69,3.8555]
[1725459632787,0.05044588,129.7,129.68,0.05216953]
[1725459634592,0.05044588,129.7,129.69,3.8555]
[1725459636688,0.05044588,129.7,129.68,0.05216953]
[1725459637390,3.8555,129.69,129.68,0.05216953]
[1725459637890,44.49044588,129.7,129.61,5.25777308]
[1725459638196,1.3464,129.69,129.61,5.25777308]
[1725459638390,3.8563,129.67,129.64,3.857]
[1725459638790,1.3464,129.69,129.61,5.25777308]
[1725459638996,0.05148217,129.65,129.63,3.91585477]
[1725459639292,0.05148217,129.65,129.63,0.05865477]
[1725459639489,0.05148217,129.65,129.63,3.91585477]
[1725459639695,0.05148217,129.65,129.63,0.05865477]
[1725459639989,0.05148217,129.65,129.63,3.91575477]
[1725459640188,0.05148217,129.65,129.63,0.05865477]
[1725459640787,44.49148217,129.65,129.5,71.41835839]
[1725459641094,44.44,129.62,129.52,2.6879]
[1725459641395,44.44,129.6,129.52,2.6879]
[1725459641585,3.8598,129.55,129.5,3.88704864]
[1725459641790,0.05309762,129.54,129.51,0.05247338]
[1725459641994,0.05285024,129.54,129.51,0.05879747]
[1725459644395,0.05285024,129.54,129.52,3.8606]
[1725459644591,0.05285024,129.54,129.51,44.49879747]
[1725459644789,0.05285024,129.54,129.51,0.05879747]
[1725459645589,3.8605,129.53,129.51,0.05879747]
[1725459645791,0.05285024,129.54,129.51,0.05879747]
[1725459645994,44.49285024,129.54,129.51,0.05879747]
[1725459646193,0.05285024,129.54,129.51,0.05879747]
[1725459646593,3.91285024,129.54,129.51,0.05879747]
[1725459646790,0.05285024,129.54,129.51,0.05879747]
[1725459647300,3.91295024,129.54,129.51,0.05879747]
[1725459647499,44.49285024,129.54,129.51,0.05879747]
[1725459647798,5.2434,129.53,129.51,0.05879747]
[1725459647995,0.05285024,129.54,129.51,0.05879747]
[1725459648996,3.91305024,129.54,129.51,0.05879747]
[1725459649992,0.05285024,129.54,129.51,0.05879747]
[1725459650498,3.8606,129.52,129.51,0.05879747]
[1725459651202,0.05285024,129.54,129.51,0.05879747]
[1725459651803,0.05285024,129.54,129.52,3.8604]
[1725459651997,0.05285024,129.54,129.51,0.05879747]
[1725459652395,0.05285024,129.54,129.53,3.8603]
[1725459652799,0.05285024,129.54,129.52,3.8603]
[1725459652999,0.05285024,129.54,129.51,0.05879747]
[1725459653398,0.05285024,129.54,129.53,3.8603]
[1725459653594,0.05285024,129.54,129.53,7.67274205]
[1725459653794,0.05285024,129.54,129.53,3.8603]
[1725459654194,227.0,129.62,129.57,3.859]
[1725459654402,1.3558,129.62,129.53,40.88657273]